bitfinex-derivatives/quotes_ETHF0:USTF0_20250730
["timestamp","ask_amount","ask_price","bid_price","bid_amount"]
[1753882534865,1.4131,3770.8,3770.7,6.9273]
[1753882535765,2.7913,3770.8,3770.7,4.1113]
[1753882536064,2.7913,3770.8,3770.7,5.4993]
[1753882536359,0.53044,3770.4,3770.2,3.2078]
[1753882536560,0.53051,3769.9,3769.7,3.2078]
[1753882536763,3.6605,3769.8,3769.7,3.2078]
[1753882536961,3.6605,3769.6,3769.3,3.2078]
[1753882537166,2.7913,3769.4,3769.3,3.2078]
[1753882537362,1.3782,3769.4,3769.3,22.4938]
[1753882537568,1.32619,3770.2,3769.3,3.2078]
[1753882537764,3.6605,3769.4,3769.3,3.2078]
[1753882538064,3.6605,3769.4,3768.7,1.388]
[1753882538065,0.53067,3768.8,3768.7,3.2078]
[1753882538264,3.6605,3768.4,3768.2,19.277]
[1753882538466,1.3003,3768.3,3767.9,3.73859]
[1753882538764,3.6666,3768.0,3767.9,3.2078]
[1753882538958,0.53079,3767.9,3767.8,0.19639848]
[1753882539165,4.19739,3767.9,3767.8,0.19639848]
[1753882539363,3.6666,3767.9,3767.8,0.19639848]
[1753882539564,2.7729,3767.9,3767.8,0.19639848]
[1753882540660,1.4726,3767.9,3767.8,1.13089848]
[1753882541057,2.7729,3767.9,3767.8,1.13089848]
[1753882541262,0.8937,3768.3,3767.8,1.13089848]
[1753882541263,0.8937,3768.3,3768.1,0.53076]
[1753882541468,1.4726,3768.2,3767.9,3.6901]
[1753882541670,1.4726,3768.1,3768.0,0.9345]
[1753882542269,1.4726,3768.4,3768.1,2.01407]
[1753882542466,1.83098,3768.7,3768.2,0.9345]
[1753882542664,1.4726,3768.3,3768.2,2.2068]
[1753882542865,1.4726,3768.5,3768.3,2.73754]
[1753882543065,1.4726,3768.5,3768.0,3.2078]
[1753882543066,1.4726,3769.3,3768.5,0.53071]
[1753882543263,0.53069,3768.7,3768.5,5.4146]
[1753882543569,1.3003,3768.7,3768.5,5.4146]
[1753882543875,2.194,3768.7,3768.5,3.2078]
[1753882544173,2.194,3768.6,3768.5,3.2078]
[1753882544364,3.6666,3768.6,3768.5,3.2078]
[1753882544566,1.4726,3768.6,3768.5,5.4146]
[1753882544871,5.4018,3769.1,3768.8,2.73746]
[1753882544872,1.4726,3768.9,3768.8,2.73746]
[1753882545569,1.4726,3769.4,3769.0,0.53064]
[1753882545772,4.5081,3769.5,3769.3,0.5306]
[1753882545977,3.6666,3769.4,3769.3,0.5306]
[1753882546168,2.7729,3769.4,3769.3,0.5306]
[1753882546472,3.73838,3769.5,3769.3,0.5306]
[1753882546675,3.73837,3769.5,3769.3,0.5306]
[1753882547076,3.6666,3769.4,3769.3,0.5306]
[1753882547570,3.6666,3769.4,3769.2,0.5306]
[1753882547766,3.6666,3769.1,3768.9,3.2078]
[1753882547977,2.194,3769.0,3768.9,3.2078]
[1753882548171,3.6666,3769.0,3768.9,3.73844]
[1753882548573,1.4726,3769.0,3768.9,5.94524]
[1753882548877,1.4726,3769.0,3768.9,7.42854]
[1753882549274,2.7729,3769.0,3768.9,3.73844]
[1753882549472,3.2078,3769.5,3768.7,0.53067]
[1753882549473,3.6666,3769.4,3768.7,0.53067]
[1753882549681,3.6666,3769.1,3769.0,0.53063]
[1753882549872,1.83094,3769.0,3768.9,0.53064]
[1753882550075,3.6666,3769.0,3768.9,0.53064]
[1753882550777,43.5729,3769.0,3768.9,0.53064]
[1753882550982,2.7729,3769.0,3768.9,0.53064]
[1753882551282,3.6666,3769.0,3768.9,0.53064]
[1753882551679,43.5729,3769.4,3769.3,0.5306]
[1753882551979,3.46087092,3769.4,3769.3,2.2068]
[1753882552182,2.7729,3769.3,3769.0,2.2068]
[1753882552484,1.58190571,3769.2,3769.1,0.53062]
[1753882553075,4.35480571,3769.2,3769.1,0.53062]
[1753882553282,3.6666,3769.1,3769.0,0.53064]
[1753882554280,6.51127,3769.5,3769.4,0.53058]
[1753882554478,7.20052951,3769.5,3769.4,0.53058]
[1753882554679,6.66995951,3769.5,3769.4,0.53058]
[1753882554984,6.66995951,3769.5,3769.4,1.46508]
[1753882555380,6.66995951,3769.5,3769.4,2.73738]
[1753882556479,5.36965951,3769.5,3769.4,2.73738]
[1753882556682,41.6937,3769.8,3769.4,2.73738]
[1753882556683,42.2726,3769.8,3769.7,2.73734]
[1753882556984,2.16248544,3769.8,3769.7,2.73734]
[1753882557183,2.16248544,3769.8,3769.7,5.94514]
[1753882557383,1.83075,3770.4,3770.1,0.53048]
[1753882557585,3.46316778,3770.3,3770.2,0.9345]
[1753882557782,3.46316778,3770.3,3770.2,2.2068]
[1753882558085,3.6666,3769.9,3769.8,19.68252]
[1753882558277,4.35740958,3769.9,3769.8,19.68252]
[1753882558475,4.35740958,3769.9,3769.7,3.73833]
[1753882558676,4.35740958,3769.8,3769.7,3.2078]
[1753882559180,1.3003,3769.6,3768.4,3.2078]
[1753882559382,2.65264,3769.9,3767.6,1.4833]
[1753882559383,1.83108,3768.0,3767.9,0.9345]
[1753882559679,1.83108,3768.0,3767.8,3.40419848]
[1753882559680,3.6666,3767.9,3767.8,0.19639848]
[1753882559880,6.8744,3767.9,3767.8,0.19639848]
[1753882560085,11.8744,3767.9,3766.9,3.2078]
[1753882560281,1.4726,3766.6,3766.5,6.52391085]
[1753882560482,1.77413243,3766.6,3766.5,4.1423]
[1753882560788,2.194,3766.5,3766.3,2.38161085]
[1753882560987,0.53092,3767.0,3766.8,1.4833]
[1753882561184,0.53092,3767.0,3766.9,2.2068]
[1753882561485,0.53096,3766.7,3766.5,3.2078]
[1753882561691,0.531,3766.4,3766.3,22.55611085]
[1753882561987,0.53102,3766.3,3766.2,2.38161085]
[1753882562183,0.53107,3765.9,3765.8,1.32815502]
[1753882562380,0.53107,3765.9,3764.0,3.2078]
[1753882562381,0.53123,3764.8,3764.0,3.2078]
[1753882562577,3.73902,3764.9,3764.1,1.4833]
[1753882562786,3.73899,3765.1,3764.8,0.9345]
[1753882562983,3.2078,3765.5,3764.6,0.9345]
[1753882563186,0.53123,3764.8,3764.5,0.9345]
[1753882563394,3.2078,3764.7,3764.5,0.9345]
[1753882563694,4.86818202,3765.3,3764.6,0.9345]
[1753882563986,0.53131,3764.2,3764.1,1.4833]
[1753882564180,0.5313,3764.3,3764.0,0.9345]
[1753882564385,0.53128,3764.5,3764.0,0.9345]
[1753882564580,3.2078,3764.7,3764.1,1.4833]
[1753882564784,3.2078,3764.7,3764.2,0.53131]
[1753882564991,0.53123,3764.8,3764.3,3.2078]
[1753882565183,6.19611202,3765.3,3764.1,0.9345]
[1753882565386,1.66038202,3764.8,3764.1,0.9345]
[1753882565689,0.53131,3764.2,3764.1,0.9345]
[1753882566387,0.53131,3764.2,3763.8,0.1966072]
[1753882566388,0.53136,3763.9,3763.8,0.1966072]
[1753882566587,3.73916,3763.9,3763.8,0.1966072]
[1753882567295,0.53135,3764.0,3763.8,0.1966072]
[1753882567489,0.53135,3764.0,3763.8,1.1311072]
[1753882567787,0.53136,3763.9,3763.8,0.1966072]
[1753882568392,0.53446,3763.9,3763.8,0.1966072]
[1753882568791,0.53526,3763.9,3763.8,0.1966072]
[1753882568991,0.0031,3763.9,3763.8,0.1966072]
[1753882569291,0.0013,3763.9,3763.8,1.0634072]
[1753882569685,3.2078,3764.1,3764.0,3.5907]
[1753882569994,0.0018,3764.3,3764.2,2.179]
[1753882570189,0.0013,3764.5,3764.0,1.39814]
[1753882570488,0.0031,3764.3,3764.1,0.8668]
[1753882570684,0.53258,3764.5,3764.1,2.2785]
[1753882570882,40.8013,3764.4,3763.9,3.2078]
[1753882571089,0.0031,3764.3,3764.2,0.8668]
[1753882571387,0.0031,3764.3,3764.1,1.4117]
[1753882571388,0.0031,3764.3,3763.9,3.2078]
[1753882571595,0.53134,3764.0,3763.8,0.1966072]
[1753882571800,0.0031,3763.9,3763.8,0.1966072]
[1753882572089,0.0039,3763.9,3763.8,0.1953072]
[1753882572284,0.0018,3763.2,3763.1,0.8668]
[1753882572791,0.0018,3763.2,3762.4,2.7239]
[1753882572792,3.2096,3763.2,3762.4,2.7239]
[1753882572998,3.74105,3763.2,3763.1,3.31374743]
[1753882573497,1.66038202,3764.8,3763.9,0.53136]
[1753882573686,41.33129,3764.4,3764.1,2.2785]
[1753882573890,0.53123,3764.8,3764.5,2.2785]
[1753882574090,0.53123,3764.8,3764.6,1.4117]
[1753882574297,0.53123,3764.8,3764.7,0.8668]
[1753882574592,0.53323,3764.8,3764.7,0.8668]
[1753882574795,40.8,3764.8,3764.2,3.31159445]
[1753882574991,40.8,3764.8,3764.3,3.31159445]
[1753882575188,0.53125,3764.7,3764.4,0.53129]
[1753882575393,0.53125,3764.7,3764.5,2.2785]
[1753882575591,0.53125,3764.7,3764.6,0.8668]
[1753882575788,0.53125,3764.7,3764.6,2.2785]
[1753882575990,21.11538202,3765.3,3764.6,2.2785]
[1753882575991,3.2098,3765.3,3765.0,3.5907]
[1753882576190,22.6588,3765.7,3765.1,0.8668]
[1753882576396,40.8,3765.6,3765.2,3.31159445]
[1753882576592,3.2078,3766.3,3765.2,6.51939445]
[1753882576792,3.2078,3766.3,3765.5,3.31159445]
[1753882577092,4.86818202,3766.3,3765.6,0.53111]
[1753882577392,0.53103,3766.2,3765.8,4.12179]
[1753882577599,0.53102,3766.3,3765.8,6.90229445]
[1753882577788,0.53105,3766.1,3765.8,6.90229445]
[1753882577989,2.19143202,3766.1,3765.8,2.2785]
[1753882578189,2.19143202,3766.1,3765.8,0.8668]
[1753882578390,0.202,3765.9,3765.8,0.8668]
[1753882578591,0.202,3765.9,3765.6,3.31159445]
[1753882578592,0.002,3765.7,3765.6,3.31159445]
[1753882578795,0.53118,3765.2,3765.0,2.2785]
[1753882578996,0.53318,3765.2,3765.1,0.8668]
[1753882579201,0.53123,3764.8,3764.7,3.2078]
[1753882579389,0.53123,3764.8,3764.6,1.4117]
[1753882579589,1.32812,3764.7,3764.2,0.8668]
[1753882579794,1.33012,3764.7,3764.3,2.2785]
[1753882579995,0.53129,3764.4,3764.2,1.3122]
[1753882580199,0.53129,3764.4,3764.3,2.2785]
[1753882580394,0.53329,3764.4,3764.3,0.8668]
[1753882580594,41.33329,3764.4,3764.3,0.8668]
[1753882580998,41.33129,3764.4,3764.3,3.5907]
[1753882581396,41.33129,3764.4,3764.3,2.2785]
[1753882581698,41.33129,3764.4,3764.3,3.5907]
[1753882582096,41.33129,3764.4,3764.3,2.2785]
[1753882582792,41.33129,3764.4,3763.9,2.179]
[1753882582793,0.53134,3764.0,3763.9,2.179]
[1753882582998,0.53134,3764.0,3763.9,3.5907]
[1753882583194,0.53134,3764.0,3763.9,2.2785]
[1753882583407,0.53334,3764.0,3763.9,0.8668]
[1753882583804,0.53134,3764.0,3763.9,2.2785]
[1753882584399,0.53133,3764.1,3764.0,3.5907]
[1753882584705,0.53133,3764.1,3764.0,0.8668]
[1753882584896,0.53138,3763.7,3763.6,2.2785]
[1753882585106,0.53338,3763.7,3763.6,0.8668]
[1753882585500,0.53138,3763.7,3763.6,2.2785]
[1753882585705,0.53145,3763.2,3763.1,3.5907]
[1753882586013,0.53345,3763.2,3763.1,0.8668]
[1753882586808,0.53145,3763.2,3763.1,3.5907]
[1753882588307,0.53145,3763.2,3763.1,2.2785]
[1753882588904,0.53145,3763.2,3763.1,3.5907]
[1753882589105,0.53148,3763.1,3762.9,4.12219]
[1753882589400,0.53146,3763.2,3763.0,3.5907]
[1753882589604,3.2078,3764.1,3763.5,0.5314]
[1753882589805,0.53136,3763.9,3763.7,1.3122]
[1753882590108,0.53131,3764.2,3764.0,1.4117]
[1753882590405,0.53131,3764.2,3764.1,3.5907]
[1753882590909,0.53129,3764.4,3764.3,3.5907]
[1753882591507,0.53128,3764.5,3764.4,0.53127]
[1753882591812,1.32802,3765.0,3764.3,0.53129]
[1753882592113,0.53123,3764.8,3764.7,0.8668]
[1753882592313,1.29129093,3764.8,3764.7,0.8668]
[1753882592519,1.29129093,3764.8,3764.7,2.2785]
[1753882592705,40.8,3765.0,3764.7,2.2785]
[1753882592706,0.53122,3764.9,3764.7,1.3122]
[1753882592910,0.53122,3764.9,3764.8,3.5907]
[1753882593106,1.29126941,3764.9,3764.8,3.5907]
[1753882593312,0.53128,3764.4,3764.3,2.7239]
[1753882593809,0.53128,3764.4,3764.3,2.2785]
[1753882594011,0.002,3764.3,3763.7,3.2078]
[1753882594215,0.53137,3763.8,3763.7,4.6195]
[1753882594811,44.0078,3765.0,3764.8,0.53122]
[1753882595017,0.53123,3764.8,3764.6,0.53126]
[1753882595217,0.24227985,3764.7,3764.6,1.84346]
[1753882595411,0.24227985,3764.7,3764.6,2.71026]
[1753882595606,0.24227985,3764.7,3764.6,4.12196]
[1753882595812,0.24227985,3764.7,3764.6,3.5907]
[1753882596416,0.53124,3764.8,3764.6,3.5907]
[1753882596718,0.53124,3764.8,3764.7,3.5907]
[1753882596908,0.77372272,3764.8,3764.7,3.5907]
[1753882597111,0.53129,3764.4,3764.3,0.8668]
[1753882597516,0.53134,3764.0,3763.9,0.8668]
[1753882597819,0.53135,3764.0,3763.9,1.3122]
[1753882598314,0.53132,3764.2,3764.1,1.4381]
[1753882598509,0.53124,3764.8,3764.1,3.2078]
[1753882598716,0.53124,3764.8,3764.7,3.5754]
[1753882598915,0.53122,3764.9,3764.7,3.5754]
[1753882599116,3.73894,3765.5,3765.0,1.4381]
[1753882599318,0.75990394,3765.4,3765.3,6.7832]
[1753882600011,0.75990394,3765.4,3765.3,5.5091]
[1753882600212,0.98758904,3765.4,3765.3,2.3013]
[1753882600413,0.98998904,3765.4,3765.3,0.8632]
[1753882600913,41.78998904,3765.4,3765.3,0.8632]
[1753882601113,0.98758904,3765.4,3765.3,3.5754]
[1753882601314,0.98758904,3765.4,3765.3,2.3013]
[1753882601919,0.98998904,3765.4,3765.3,0.8632]
[1753882602419,0.98758904,3765.4,3765.3,2.3013]
[1753882602613,0.98998904,3765.4,3765.3,0.8632]
[1753882603211,0.98758904,3765.4,3765.3,2.3013]
[1753882603415,0.98758904,3765.4,3765.3,3.5754]
[1753882603814,1.51872904,3765.4,3765.3,3.5754]
[1753882604023,1.52112904,3765.4,3765.3,2.3013]
[1753882604215,0.98758904,3765.4,3765.2,1.4381]
[1753882604411,1.51874904,3765.3,3765.2,2.7122]
[1753882604618,1.29106394,3765.3,3765.2,2.7122]
[1753882604815,1.29106394,3765.3,3765.2,3.5754]
[1753882605020,0.75990394,3765.3,3765.1,3.73898]
[1753882605312,0.94082014,3765.6,3765.5,0.53112]
[1753882605518,0.98852034,3765.6,3765.5,7.31432]
[1753882605923,0.2276071,3765.6,3765.5,6.7832]
[1753882606319,40.8,3765.8,3765.6,0.53112]
[1753882606519,1.29296702,3765.7,3765.6,2.3013]
[1753882607522,0.98948235,3765.7,3765.6,3.5754]
[1753882607730,0.76186702,3765.7,3765.6,3.5754]
[1753882608221,0.5311,3765.7,3765.5,2.66842]
[1753882608421,0.5311,3765.7,3765.6,2.1373]
[1753882608628,0.5311,3765.7,3765.6,0.8632]
[1753882608927,0.0024,3765.6,3765.0,3.73899]
[1753882609119,0.53118,3765.2,3765.0,3.73899]
[1753882609320,0.53118,3765.2,3764.5,1.32817]
[1753882609321,0.0024,3765.2,3764.6,3.2078]
[1753882609619,0.53124,3764.8,3764.7,2.7122]
[1753882609820,0.53124,3764.8,3764.7,3.5754]
[1753882610022,0.53123,3764.9,3764.7,3.5754]
[1753882610225,0.53122,3764.9,3764.8,0.8632]
[1753882610423,1.29912647,3764.9,3764.8,2.3013]
[1753882610725,20.22582014,3765.6,3765.3,2.3013]
[1753882610930,0.53115,3765.4,3765.2,3.73897]
[1753882611130,0.76527864,3765.3,3765.2,3.73897]
[1753882611626,0.76527864,3765.3,3765.2,6.7832]
[1753882611826,0.76527864,3765.3,3765.2,3.5754]
[1753882612621,0.76767864,3765.3,3765.2,0.8632]
[1753882613120,1.70849878,3765.3,3765.2,0.8632]
[1753882613526,0.76767864,3765.3,3765.2,0.8632]
[1753882613727,0.76767864,3765.3,3765.2,2.3013]
[1753882613920,0.76767864,3765.3,3764.7,5.92]
[1753882614124,0.53362,3764.9,3764.8,0.8632]
[1753882614323,1.29649864,3764.9,3764.8,3.5754]
[1753882614928,2.23731878,3764.9,3764.8,3.5754]
[1753882615122,1.29649864,3764.9,3764.8,3.5754]
[1753882616123,0.76527864,3764.9,3764.8,3.5754]
[1753882616725,0.5312,3765.1,3765.0,0.53119]
[1753882616925,1.70596016,3765.1,3765.0,4.10659]
[1753882617126,1.47196014,3765.5,3765.4,0.53115]
[1753882617325,0.76520777,3765.5,3765.4,4.10655]
[1753882617525,4.14862014,3765.8,3765.6,4.10652]
[1753882617829,1.67190014,3765.9,3765.8,2.7122]
[1753882618028,1.49631261,3765.9,3765.8,3.5754]
[1753882618222,1.49631261,3765.9,3765.8,0.8632]
[1753882618223,1.49871261,3765.9,3765.8,0.8632]
[1753882618624,1.49631261,3765.9,3765.8,3.5754]
[1753882619226,0.96523261,3765.9,3765.8,3.5754]
[1753882619727,0.96763261,3765.9,3765.8,0.8632]
[1753882619926,0.96523261,3765.9,3765.8,3.5754]
[1753882620529,0.2,3765.9,3765.8,3.5754]
[1753882621125,0.2,3765.9,3765.8,4.10649]
[1753882621328,2.26819014,3766.9,3765.8,3.5754]
[1753882621526,0.53102,3766.4,3766.3,3.5754]
[1753882621836,3.33062261,3767.1,3766.3,3.5754]
[1753882621837,1.4186259,3767.3,3767.1,0.53091]
[1753882622131,0.76470601,3767.2,3767.0,0.53091]
[1753882622333,0.76470601,3767.1,3767.0,3.73871]
[1753882622629,0.76470601,3767.1,3767.0,6.7832]
[1753882623428,0.53088,3767.3,3767.0,7.31411]
[1753882623632,0.53088,3767.3,3767.1,3.5754]
[1753882623843,0.53088,3767.3,3767.0,3.2078]
[1753882623844,0.53088,3767.3,3767.2,3.5754]
[1753882624043,1.47458,3767.3,3767.2,0.8632]
[1753882624434,1.47218,3767.3,3767.2,3.5754]
[1753882624732,1.47218,3767.3,3767.2,2.3013]
[1753882625128,5.43974613,3767.3,3767.2,2.3013]
[1753882625328,0.53099,3766.6,3766.3,0.53101]
[1753882625534,0.53099,3766.6,3766.5,2.7122]
[1753882625736,0.53096,3766.7,3766.4,35.59599]
[1753882626038,0.53095,3766.9,3766.6,3.5754]
[1753882626236,0.53096,3766.7,3766.5,0.53098]
[1753882626537,0.53096,3766.8,3766.7,0.8632]
[1753882626739,3.2078,3767.3,3766.8,0.53095]
[1753882626931,0.53095,3766.8,3766.6,3.2078]
[1753882627236,1.47225,3766.8,3766.7,3.5754]
[1753882627437,1.47225,3766.8,3766.7,2.3013]
[1753882627630,1.47465,3766.8,3766.7,2.3013]
[1753882628228,1.47465,3766.8,3766.7,0.8632]
[1753882628733,0.53094,3766.9,3766.8,3.7004]
[1753882630334,1.47124,3766.9,3766.8,2.4193]
[1753882630534,1.47124,3766.9,3766.8,3.7004]
[1753882630730,0.53093,3767.0,3766.8,3.7004]
[1753882630937,3.73869,3767.3,3767.2,3.7004]
[1753882631738,0.53086,3767.5,3767.3,1.40218]
[1753882632039,0.53082,3767.8,3767.4,3.2078]
[1753882632239,0.2,3767.9,3767.8,3.7004]
[1753882632739,0.018,3768.3,3768.2,0.53075]
[1753882633041,0.54874,3768.3,3768.2,6.9082]
[1753882633242,1.4186259,3769.1,3768.3,1.81184]
[1753882633442,1.4186259,3769.5,3769.0,4.86818202]
[1753882633740,0.53054,3769.7,3769.6,2.4193]
[1753882633945,1.9491659,3769.7,3769.6,3.7004]
[1753882634141,1.9491559,3769.8,3769.6,1.2811]
[1753882634340,1.81323,3769.8,3769.7,0.8713]
[1753882634635,0.53058,3769.5,3769.2,2.8291]
[1753882634842,0.5306,3769.3,3769.0,3.7004]
[1753882635043,0.5306,3769.3,3769.1,3.7004]
[1753882635234,0.5306,3769.3,3769.2,3.7004]
[1753882635433,1.8133,3769.3,3769.2,0.8713]
[1753882635636,1.2827,3769.2,3769.1,19.267]
[1753882635832,1.41736161,3769.5,3769.2,0.8713]
[1753882636044,1.41736161,3769.5,3769.4,3.7004]
[1753882636240,1.41736161,3769.5,3769.4,4.23098]
[1753882636539,1.94789161,3769.8,3769.6,1.2811]
[1753882636742,1.94789161,3769.8,3769.1,0.8713]
[1753882636743,1.81211,3769.2,3769.1,0.8713]
[1753882636937,0.53061,3769.2,3769.1,3.7004]
[1753882637341,1.81211,3769.2,3769.1,0.8713]
[1753882637639,1.81331,3769.2,3769.1,0.8713]
[1753882637937,0.53067,3768.8,3768.7,22.9834]
[1753882638140,0.53067,3768.8,3768.7,3.7004]
[1753882638341,4.4905,3769.2,3768.8,2.4193]
[1753882638342,0.53065,3768.9,3768.8,2.4193]
[1753882638645,0.53069,3768.6,3768.5,2.4193]
[1753882638848,0.53069,3768.6,3768.5,3.7004]
[1753882639038,1.81219,3768.6,3768.5,0.8713]
[1753882639241,1.81339,3768.6,3768.5,0.8713]
[1753882639441,0.53081,3767.8,3767.7,0.8713]
[1753882639639,1.81231,3767.8,3767.7,0.8713]
[1753882640148,0.53095,3766.8,3766.7,3.7004]
[1753882640347,0.53095,3766.8,3766.7,2.4193]
[1753882640740,1.81245,3766.8,3766.7,2.4193]
[1753882641242,0.531,3766.4,3766.3,2.4193]
[1753882641441,1.8125,3766.4,3766.3,0.8713]
[1753882641634,1.8125,3766.4,3766.3,2.4193]
[1753882642335,0.53106,3766.0,3765.9,22.0961]
[1753882642538,3.2078,3766.6,3765.9,19.267]
[1753882642943,0.53102,3766.3,3765.9,19.79807]
[1753882643144,0.53101,3766.4,3766.2,3.7004]
[1753882643343,0.53101,3766.4,3766.3,2.4193]
[1753882644236,1.41649762,3768.4,3766.3,2.4193]
[1753882644237,0.53093,3766.9,3766.6,2.1524]
[1753882644445,0.53097,3766.7,3766.5,3.7004]
[1753882644648,0.53097,3766.7,3766.6,3.7004]
[1753882644946,1.81247,3766.7,3766.6,2.4193]
[1753882645547,0.53095,3766.8,3766.7,1.2811]
[1753882645747,0.53095,3766.8,3766.7,3.7004]
[1753882646244,40.8,3767.2,3766.8,2.4193]
[1753882646448,0.53093,3767.0,3766.9,2.4193]
[1753882646648,1.81243,3767.0,3766.9,0.8713]
[1753882646849,1.81249,3766.5,3766.4,2.4193]
[1753882647243,0.53099,3766.5,3766.4,2.4193]
[1753882647437,1.2815,3766.4,3765.8,3.40430278]
[1753882647638,1.66038202,3766.2,3765.8,1.74450278]
[1753882647844,1.32738,3766.8,3766.1,1.548]
[1753882648046,4.4893,3766.9,3766.3,1.548]
[1753882648245,0.531,3766.5,3766.4,2.8291]
[1753882648441,0.531,3766.5,3766.4,3.7004]
[1753882648938,3.2078,3766.9,3766.4,3.7004]
[1753882649144,0.53098,3766.6,3766.5,3.7004]
[1753882649343,1.81253,3766.2,3766.1,0.8713]
[1753882649548,1.2815,3766.2,3766.1,0.8713]
[1753882649743,1.2815,3766.2,3766.1,2.4193]
[1753882650043,0.53105,3766.1,3765.9,0.8713]
[1753882650251,0.53105,3766.1,3766.0,2.4193]
[1753882650451,1.81255,3766.1,3766.0,2.4193]
[1753882650641,42.61255,3766.1,3766.0,0.8713]
[1753882650842,40.8,3766.1,3766.0,2.4193]
[1753882651044,40.8,3766.1,3766.0,3.7004]
[1753882651644,3.2078,3766.9,3766.4,0.53099]
[1753882651845,4.4893,3766.9,3766.3,3.2078]
[1753882652151,1.81249,3766.5,3766.4,0.8713]
[1753882652749,0.53103,3766.2,3766.1,2.4193]
[1753882653053,1.81253,3766.2,3766.1,2.4193]
[1753882654453,1.81257,3765.9,3765.8,0.19650278]
[1753882654753,1.81257,3765.9,3765.8,1.74450278]
[1753882655046,0.53107,3766.0,3765.9,0.53107]
[1753882655246,1.2815,3766.4,3766.2,2.4193]
[1753882655455,0.53107,3765.9,3765.8,2.61580278]
[1753882655743,0.53107,3765.9,3765.8,3.89690278]
[1753882656348,1.2815,3766.4,3765.9,2.4193]
[1753882656550,1.2815,3766.4,3766.2,2.8291]
[1753882656752,0.53101,3766.4,3766.3,3.7004]
[1753882657450,0.53107,3765.9,3765.8,3.02560278]
[1753882657845,1.81257,3765.9,3765.8,3.89690278]
[1753882658554,1.32926,3766.3,3765.8,3.89690278]
[1753882658555,0.53106,3766.1,3766.0,0.53105]
[1753882658752,0.53106,3766.1,3766.0,4.24585]
[1753882658958,0.53106,3766.1,3766.0,3.7148]
[1753882659752,2.6547,3766.9,3766.1,3.7148]
[1753882659945,0.53103,3766.2,3766.1,3.7148]
[1753882660150,1.82823,3766.2,3766.1,3.7148]
[1753882660349,1.82823,3766.2,3766.1,2.3442]
[1753882660853,1.82993,3766.2,3766.1,0.8454]
[1753882661052,0.53107,3765.9,3765.8,1.04190278]
[1753882661254,1.82827,3765.9,3765.8,2.54070278]
[1753882661851,0.53107,3766.0,3765.9,3.7148]
[1753882662353,3.73872,3767.0,3766.4,1.4988]
[1753882662653,0.53093,3767.0,3766.9,0.53092]
[1753882662848,0.53093,3767.0,3766.8,1.3706]
[1753882662849,1.32708,3767.7,3766.7,3.2078]
[1753882663045,1.2972,3767.8,3767.3,3.33265996]
[1753882663252,1.2972,3767.8,3767.4,0.53085]
[1753882663450,0.53083,3767.6,3767.5,7.57829996]
[1753882663644,0.53082,3767.7,3767.5,7.57829996]
[1753882663953,42.0972,3768.0,3767.8,3.7148]
[1753882664155,42.62799,3768.0,3767.9,2.3442]
[1753882665052,42.62799,3768.0,3767.9,3.7148]
[1753882665253,42.62799,3768.0,3767.9,2.3442]
[1753882665553,0.53077,3768.1,3768.0,1.4988]
[1753882665745,0.53077,3768.1,3768.0,3.7148]
[1753882666053,1.82797,3768.1,3768.0,2.3442]
[1753882666254,40.8,3768.2,3768.0,2.3442]
[1753882666255,41.33075,3768.2,3768.0,4.24558]
[1753882666458,42.62965,3768.2,3768.1,2.3442]
[1753882667455,42.62795,3768.2,3768.1,3.7148]
[1753882667653,41.33075,3768.2,3768.1,3.7148]
[1753882667956,42.62795,3768.2,3768.1,3.70815537]
[1753882668154,40.8,3768.2,3768.1,2.86275537]
[1753882668452,40.8,3768.2,3768.0,0.53078]
[1753882668453,0.53069,3768.6,3768.4,1.3706]
[1753882668657,0.53076,3768.1,3768.0,3.2078]
[1753882668959,0.53078,3768.0,3767.9,0.8454]
[1753882669258,0.53078,3768.0,3767.9,2.216]
[1753882669448,3.2078,3768.3,3767.6,1.32709]
[1753882669644,0.5307,3768.6,3768.3,0.53074]
[1753882669850,1.32657,3769.1,3768.5,0.8454]
[1753882670163,0.53069,3768.7,3768.6,3.7148]
[1753882670456,1.83619,3768.7,3768.6,2.3442]
[1753882670657,1.82794,3768.3,3768.2,6.9226]
[1753882671058,0.53073,3768.4,3768.2,3.73854]
[1753882671253,0.53073,3768.4,3768.3,3.7148]
[1753882671447,1.2972,3768.9,3768.6,2.3442]
[1753882671653,3.2078,3769.2,3768.6,3.2078]
[1753882671857,0.53062,3769.1,3768.8,4.24547]
[1753882672156,2.62362,3769.6,3769.0,6.0772]
[1753882672353,0.5306,3769.3,3769.1,1.37601]
[1753882672552,0.5306,3769.3,3769.2,3.7148]
[1753882672756,0.53064,3769.0,3768.9,3.2078]
[1753882672959,1.83614,3769.0,3768.9,4.0532]
[1753882673164,1.82784,3769.0,3768.9,5.552]
[1753882673759,0.4,3769.4,3769.0,1.3706]
[1753882673964,0.53059,3769.4,3768.9,3.2078]
[1753882674261,42.0972,3769.8,3769.4,2.8694]
[1753882674560,0.74805522,3769.7,3769.5,1.90115]
[1753882674858,0.74805522,3769.6,3769.5,1.90115]
[1753882675054,3.4078,3769.9,3769.8,0.53053]
[1753882675258,0.94809163,3769.9,3769.8,4.24533]
[1753882676256,0.94809163,3769.9,3769.8,3.7148]
[1753882676562,2.24529163,3769.9,3769.8,2.3442]
[1753882677251,2.24529163,3769.9,3769.8,2.87473]
[1753882677460,0.94809163,3769.9,3769.8,2.3442]
[1753882677761,2.2372862,3769.9,3769.8,2.3442]
[1753882678161,2.237235,3769.9,3769.8,2.3442]
[1753882678767,2.245535,3769.9,3769.8,0.8454]